bitfinex/quotes_ETHUSD_20240718
["timestamp","ask_amount","ask_price","bid_price","bid_amount"]
[1721320043168,0.3527728,3401.6,3401.2,0.05846013]
[1721320043379,0.3527728,3401.6,3400.5,5.47974]
[1721320043380,2.94003,3401.4,3400.5,5.47974]
[1721320043680,2.94003,3401.4,3401.3,0.05840362]
[1721320043885,2.458,3401.4,3400.1,2.539]
[1721320044082,3.0,3401.3,3399.9,2.4192]
[1721320044380,2.9409,3400.4,3399.4,5.24872]
[1721320044544,2.94101,3400.2,3399.5,2.94152]
[1721320044745,2.94067,3400.6,3399.9,2.94125]
[1721320044941,2.94057,3400.7,3400.0,2.94115]
[1721320045141,3.0,3400.6,3400.0,2.94115]
[1721320045443,3.0,3400.6,3400.1,4.8461]
[1721320045666,5.94032,3401.0,3400.1,4.8461]
[1721320045892,7.5,3401.1,3400.1,4.8461]
[1721320046101,7.5,3401.1,3400.6,2.94064]
[1721320046389,7.5,3401.1,3400.8,2.94047]
[1721320046701,3.0,3401.4,3400.8,2.94047]
[1721320046863,3.92323928,3401.4,3400.8,2.94047]
[1721320047057,6.86326928,3401.4,3400.6,2.94064]
[1721320047393,0.3527728,3401.6,3400.9,2.94039]
[1721320047572,2.2872,3401.8,3400.9,2.94039]
[1721320047573,5.22682,3401.8,3401.0,2.94025]
[1721320047768,2.93962,3401.8,3401.0,2.94025]
[1721320047975,2.93962,3401.8,3401.1,2.94021]
[1721320048291,2.93938,3402.1,3401.3,2.94004]
[1721320048457,10.4392,3402.3,3401.5,2.93986]
[1721320048661,1.337822,3402.2,3401.5,2.93986]
[1721320048883,2.93902,3402.5,3401.5,2.93986]
[1721320049084,2.93902,3402.5,3401.7,2.9397]
[1721320049268,2.93887,3402.7,3401.7,2.9397]
[1721320049726,2.93911,3402.4,3401.7,2.9397]
[1721320049917,2.3481,3402.8,3401.7,2.9397]
[1721320049918,2.93899,3402.6,3401.7,2.9397]
[1721320050068,3.761631,3402.5,3401.7,2.9397]
[1721320050396,3.761631,3402.5,3401.6,2.4523]
[1721320050397,0.822601,3402.5,3401.6,2.4523]
[1721320050601,2.93922,3402.3,3400.8,2.94048]
[1721320050806,2.93922,3402.3,3400.9,3.49038]
[1721320050807,2.9398,3401.6,3400.9,3.49038]
[1721320051008,2.93969,3401.8,3401.0,2.94031]
[1721320051516,3.0,3402.2,3401.1,2.94017]
[1721320051517,2.93955,3401.9,3401.1,2.94017]
[1721320051684,3.0,3402.2,3400.9,0.55]
[1721320051685,2.93937,3402.1,3401.2,2.94012]
[1721320051885,7.5,3402.3,3401.6,2.93975]
[1721320052090,2.93854,3403.1,3401.6,2.93975]
[1721320052091,2.93887,3402.7,3401.6,2.93975]
[1721320052292,2.93887,3402.7,3401.5,5.8632]
[1721320052293,2.93887,3402.7,3401.9,2.93952]
[1721320053111,2.93893,3402.6,3401.8,2.93956]
[1721320053720,2.93902,3402.5,3401.8,2.93956]
[1721320053894,3.526809,3402.5,3401.8,2.93956]
[1721320054095,3.526809,3402.5,3401.9,0.05788064]
[1721320054824,2.93911,3402.4,3401.9,0.05788064]
[1721320055031,2.93899,3402.6,3401.9,0.05788064]
[1721320055227,2.93899,3402.6,3401.8,2.93962]
[1721320055384,2.93899,3402.6,3401.8,3.5007397]
[1721320055733,3.0,3403.1,3402.0,2.93936]
[1721320055892,3.0,3403.1,3402.0,6.32836]
[1721320056082,2.9388,3402.8,3402.0,6.32836]
[1721320056283,2.9389,3402.7,3402.1,0.05776767]
[1721320056493,2.9389,3402.7,3402.0,2.93936]
[1721320056701,2.93893,3402.6,3401.8,3.5007297]
[1721320056907,2.93893,3402.6,3401.9,0.55]
[1721320057110,0.587763,3402.6,3401.9,0.05766137]
[1721320057293,0.587763,3402.6,3400.9,7.44]
[1721320057294,2.93944,3402.0,3401.2,3.289112]
[1721320057500,2.93934,3402.2,3401.4,2.93996]
[1721320057693,2.93936,3402.1,3401.4,2.93996]
[1721320057899,2.93936,3402.1,3401.5,0.05788735]
[1721320058287,2.93934,3402.2,3401.5,2.99775735]
[1721320058482,7.5,3402.7,3401.5,2.99775735]
[1721320058483,2.93895,3402.6,3401.8,2.9396]
[1721320058784,7.5,3402.7,3402.1,2.93935]
[1721320058990,2.93878,3402.8,3402.1,2.93935]
[1721320059237,2.93867,3402.9,3402.2,2.99676192]
[1721320059385,2.9386,3403.0,3402.2,0.05749192]
[1721320059582,3.53246,3403.0,3402.2,0.05749192]
[1721320060531,2.93876,3402.8,3402.2,0.05749192]
[1721320060733,2.93905,3402.5,3402.2,0.05749192]
[1721320060892,2.93918,3402.3,3402.2,0.05749192]
[1721320061233,2.93908,3402.5,3401.8,2.93956]
[1721320061398,2.93908,3402.5,3402.2,0.05749192]
[1721320061601,3.298076,3402.9,3402.0,2.93943]
[1721320061924,5.3009,3403.1,3402.1,3.233293]
[1721320061925,5.93875,3402.8,3402.1,3.233293]
[1721320062124,5.93875,3402.8,3402.1,3.2908414]
[1721320062325,2.93858,3403.0,3402.1,3.2908414]
[1721320062545,10.43824,3403.4,3402.1,3.2908414]
[1721320062546,5.93839,3403.3,3402.5,2.939]
[1721320062827,6.982214,3403.3,3402.5,2.939]
[1721320063028,6.982214,3403.3,3402.2,5.80273]
[1721320063029,6.982214,3403.3,3402.6,0.05704461]
[1721320063206,2.93854,3403.1,3402.6,0.05704461]
[1721320063557,3.0,3403.0,3402.4,2.93904]
[1721320063839,2.93841,3403.2,3402.7,0.05698814]
[1721320063840,3.0,3403.1,3402.7,0.05698814]
[1721320064005,3.0,3403.1,3402.4,2.93904]
[1721320064200,3.0,3403.1,3402.8,0.05693168]
[1721320064408,3.0,3403.1,3402.5,2.93899]
[1721320064638,3.0,3403.2,3402.9,0.05687523]
[1721320064787,3.0,3403.2,3402.5,2.93899]
[1721320064990,3.0,3403.2,3403.0,0.05681878]
[1721320065244,3.0,3403.2,3402.5,2.93899]
[1721320065524,2.93842,3403.2,3402.5,0.874167]
[1721320065692,2.93842,3403.2,3402.6,0.0570269]
[1721320066590,2.93818,3403.5,3402.7,0.55]
[1721320066795,5.93828,3403.4,3402.7,3.54573823]
[1721320067141,2.93828,3403.4,3402.7,0.60696823]
[1721320067492,5.87623,3403.6,3402.7,3.54572823]
[1721320067735,2.93816,3403.5,3402.7,4.28160375]
[1721320068124,2.9381,3403.6,3402.7,4.28160375]
[1721320068125,2.9381,3403.6,3402.9,2.93863]
[1721320068329,2.9381,3403.6,3403.0,2.3204]
[1721320068819,2.9381,3403.6,3403.0,2.37713692]
[1721320069143,2.93823,3403.4,3403.0,0.05673692]
[1721320069441,2.93823,3403.4,3402.7,3.48879]
[1721320069596,5.87624,3403.6,3403.1,0.05665392]
[1721320069795,2.93815,3403.5,3402.8,2.93875]
[1721320070023,2.93815,3403.5,3403.2,0.05659747]
[1721320070223,2.9381,3403.6,3402.8,2.93875]
[1721320070435,2.9381,3403.6,3403.3,0.05654103]
[1721320070595,2.9381,3403.6,3402.8,2.93868]
[1721320070793,2.9381,3403.6,3403.4,0.05648348]
[1721320070992,2.9381,3403.6,3402.9,2.93866]
[1721320071243,2.9381,3403.6,3403.0,2.93858]
[1721320071528,2.9381,3403.6,3403.0,0.05670594]
[1721320071729,2.9382,3403.5,3403.0,0.05670594]
[1721320071903,2.9382,3403.5,3402.7,0.55]
[1721320072434,2.9382,3403.5,3402.8,0.05681885]
[1721320072435,2.93866,3402.9,3402.8,0.05681885]
[1721320072597,2.93856,3403.1,3402.8,0.05681885]
[1721320072795,2.93856,3403.1,3402.4,2.93908]
[1721320072998,2.93844,3403.2,3402.9,0.05675797]
[1721320072999,2.93859,3403.0,3402.9,0.05675797]
[1721320073196,2.93859,3403.0,3402.2,5.1996]
[1721320073197,2.93844,3403.2,3402.5,2.939]
[1721320073449,3.0,3403.9,3402.9,0.05675797]
[1721320073450,2.93809,3403.6,3402.9,0.05675797]
[1721320073739,2.9377,3404.1,3402.9,2.2604]
[1721320073740,2.93817,3403.5,3402.9,2.2604]
[1721320074029,2.93776,3404.0,3403.0,0.05670152]
[1721320074230,2.93786,3403.9,3403.1,2.93844]
[1721320074434,2.93786,3403.9,3403.2,2.9384]
[1721320074435,3.0,3403.8,3403.2,2.9384]
[1721320074605,3.0,3403.8,3403.2,2.99501628]
[1721320075030,2.93786,3403.9,3403.2,2.99501628]
[1721320075196,2.93754,3404.2,3403.6,2.2604]
[1721320075636,2.93754,3404.2,3403.7,0.0563341]
[1721320076225,2.9377,3404.1,3403.7,0.0563341]
[1721320076762,2.93754,3404.2,3403.7,0.0563341]
[1721320077070,2.93772,3404.0,3403.7,0.0563341]
[1721320077854,2.93772,3404.0,3403.4,2.93822]
[1721320078053,2.93772,3404.0,3403.8,0.05617592]
[1721320078374,2.93754,3404.2,3403.9,0.0561195]
[1721320078778,2.93754,3404.2,3403.4,2.93815]
[1721320079065,2.9372,3404.6,3404.0,0.0559016]
[1721320079374,5.9372,3404.6,3403.9,5.3415]
[1721320079559,5.9372,3404.6,3404.1,0.05584408]
[1721320079776,5.9372,3404.6,3403.9,5.3415]
[1721320079777,2.9372,3404.6,3404.0,0.05590049]
[1721320079930,2.9372,3404.6,3404.2,0.0557534]
[1721320080130,2.9372,3404.6,3404.0,0.293943]
[1721320080131,2.9372,3404.6,3404.0,2.93771]
[1721320080443,2.93705,3404.8,3404.1,0.0558087]
[1721320080641,7.5,3405.0,3404.1,0.0558087]
[1721320080858,2.4247,3405.3,3404.5,2.93721]
[1721320080859,2.9366,3405.3,3404.5,2.93721]
[1721320081069,3.23026,3405.3,3404.5,2.93721]
[1721320081227,3.23026,3405.3,3404.6,0.0555112]
[1721320081539,2.9366,3405.3,3404.6,2.9926612]
[1721320081746,2.93688,3405.0,3404.6,0.0555112]
[1721320082575,9.9247,3405.7,3404.6,0.0555112]
[1721320082576,2.93708,3404.8,3404.6,0.0555112]
[1721320082745,2.93709,3404.8,3404.0,5.38221]
[1721320082928,2.93712,3404.7,3404.1,0.05575676]
[1721320083134,2.93751,3404.3,3404.1,0.05575676]
[1721320083368,2.93751,3404.3,3403.6,5.38248]
[1721320083538,2.93751,3404.3,3404.2,0.05570587]
[1721320083868,2.93754,3404.2,3403.6,2.4445]
[1721320084084,2.93744,3404.4,3403.6,5.38249]
[1721320084239,2.93744,3404.4,3403.7,2.93797]
[1721320084547,2.93746,3404.3,3403.7,2.93797]
[1721320084733,2.93746,3404.3,3403.6,3.01718791]
[1721320084938,2.93746,3404.3,3403.7,0.55]
[1721320085169,2.93714,3404.7,3403.8,2.93787]
[1721320085374,2.93714,3404.7,3403.9,0.55]
[1721320085668,7.5,3405.0,3403.9,0.55]
[1721320085669,2.93721,3404.6,3403.9,3.48779]
[1721320085876,2.93712,3404.7,3404.0,2.93769]
[1721320086048,2.93712,3404.7,3403.9,3.48779]
[1721320086049,2.93712,3404.7,3403.9,0.55]
[1721320086369,2.93712,3404.7,3403.6,2.4445]
[1721320086370,2.93743,3404.4,3403.6,2.4445]
[1721320086578,2.93751,3404.3,3403.7,0.55]
[1721320087068,2.93723,3404.6,3403.7,3.48796]
[1721320087301,2.93723,3404.6,3403.8,1.107806]
[1721320087302,2.93738,3404.4,3403.8,1.107806]
[1721320087446,2.93738,3404.4,3403.8,4.045676]
[1721320087658,2.93713,3404.7,3404.0,2.9377]
[1721320088036,2.93694,3404.9,3403.9,0.55]
[1721320088258,2.93708,3404.8,3404.1,2.93762]
[1721320088443,2.93721,3404.6,3403.9,3.48773]
[1721320089042,4.274502,3404.8,3403.9,3.48773]
[1721320089242,2.93716,3404.7,3403.9,0.55]
[1721320089486,2.93738,3404.4,3403.9,0.55]
[1721320089650,2.93748,3404.3,3403.7,0.55]
[1721320089858,2.93732,3404.5,3403.7,0.55]
[1721320090063,2.93732,3404.5,3403.7,3.48797]
[1721320090064,2.93743,3404.4,3403.7,3.48797]
[1721320090264,2.93748,3404.3,3403.7,0.55]
[1721320090976,2.9377,3404.1,3403.7,0.55]
[1721320091184,2.93772,3404.0,3403.6,0.55]
[1721320091369,2.93772,3404.0,3403.5,0.55]
[1721320091573,2.9376,3404.2,3403.5,0.55]
[1721320092325,2.9376,3404.2,3403.5,1.141966]
[1721320092463,2.9376,3404.2,3403.5,4.080066]
[1721320093187,2.93772,3404.0,3403.5,1.141966]
[1721320093488,2.93772,3404.0,3403.5,0.55]
[1721320093798,2.9379,3403.8,3403.2,2.4315]
[1721320094007,2.93772,3404.0,3403.2,2.4315]
[1721320094008,2.93772,3404.0,3403.3,3.48827]
[1721320094152,2.93781,3403.9,3403.3,3.48827]
[1721320094357,2.93772,3404.0,3403.3,3.48827]
[1721320094358,2.93789,3403.8,3403.3,1.774731]
[1721320094684,2.93772,3404.0,3403.3,1.774731]
[1721320095875,2.93766,3404.1,3403.4,2.93816]
[1721320096051,7.5,3404.6,3403.7,2.93792]
[1721320096052,2.93739,3404.4,3403.7,2.93792]
[1721320096250,2.93739,3404.4,3403.7,3.625612]
[1721320096460,2.93748,3404.3,3403.7,3.625612]
[1721320096684,2.93748,3404.3,3403.7,0.687692]
[1721320097096,2.93782,3403.9,3403.5,3.939]
[1721320097298,2.93782,3403.9,3403.2,2.4315]
[1721320097590,2.93782,3403.9,3403.3,0.55]
[1721320098088,2.93774,3404.0,3403.3,3.48827]
[1721320098306,2.93783,3403.9,3403.3,3.48832]
[1721320098459,2.2818,3404.2,3403.3,0.55]
[1721320098655,2.93805,3403.7,3403.3,0.55]
[1721320098865,2.93784,3403.9,3403.3,0.55]
[1721320099068,2.93784,3403.9,3403.4,0.05618049]
[1721320099291,2.93789,3403.8,3403.4,0.05618049]
[1721320099594,2.93794,3403.8,3403.4,0.05618049]
[1721320099801,2.93808,3403.6,3403.4,0.05618049]
[1721320099993,2.93812,3403.6,3403.4,0.05618049]
[1721320100198,2.93812,3403.6,3402.9,2.9386]
[1721320100360,2.93812,3403.6,3403.5,0.05612406]
[1721320100564,2.93793,3403.8,3403.1,2.93842]
[1721320100798,2.93793,3403.8,3403.2,3.54469337]
[1721320101124,2.93793,3403.8,3403.2,0.60629337]
[1721320101279,0.22818,3404.1,3403.2,0.05629337]
[1721320101482,2.93811,3403.6,3403.2,0.05629337]
[1721320101699,2.93805,3403.7,3402.8,8.32097]
[1721320102012,2.93784,3403.9,3403.1,2.93843]
[1721320102013,2.93791,3403.8,3403.1,2.93843]
[1721320102179,2.2818,3404.2,3402.9,1.43859952]
[1721320102392,2.93747,3404.3,3403.2,0.05633207]
[1721320102564,2.93734,3404.5,3403.7,2.3257]
[1721320102764,2.93738,3404.4,3403.8,3.85914146]
[1721320103382,2.93738,3404.4,3403.8,0.92126146]
[1721320103909,2.93724,3404.6,3403.9,2.93779]
[1721320104094,2.93708,3404.8,3404.0,0.55]
[1721320104294,2.93719,3404.7,3404.0,3.54353062]
[1721320104517,2.93708,3404.8,3404.0,0.60588062]
[1721320104518,2.93721,3404.6,3404.0,0.60588062]
[1721320105370,5.87449,3404.6,3404.0,0.60588062]
[1721320105573,2.93721,3404.6,3404.0,0.60588062]
[1721320105890,2.93729,3404.5,3404.0,0.60588062]
[1721320106210,2.93763,3404.1,3404.0,0.05588062]
[1721320106572,2.93763,3404.1,3403.4,2.93822]
[1721320106776,2.93756,3404.2,3404.0,0.05582204]
[1721320107112,2.93751,3404.3,3403.5,2.93807]
[1721320107328,2.93754,3404.2,3404.1,0.05576562]
[1721320107475,3.583792,3404.2,3403.5,2.93814]
[1721320107671,2.93754,3404.2,3403.5,2.93814]
[1721320107876,2.93754,3404.2,3403.6,0.05605768]
[1721320108102,2.93713,3404.7,3403.7,2.93793]
[1721320108271,2.93713,3404.7,3403.9,2.93774]
[1721320108272,3.0,3404.6,3403.9,2.93774]
[1721320108474,5.93725,3404.6,3403.9,2.93774]
[1721320108796,5.93725,3404.6,3403.7,2.93791]
[1721320108797,3.887438,3404.6,3404.0,0.05583641]
[1721320109110,7.5,3405.2,3404.0,0.05583641]
[1721320109111,5.87526,3404.1,3404.0,0.05583641]
[1721320109409,5.87526,3404.1,3403.3,2.34]
[1721320109410,2.93763,3404.1,3403.3,5.2783]
[1721320109615,2.93736,3404.5,3403.3,2.34]
[1721320109816,2.93709,3404.8,3403.3,2.34]
[1721320109817,2.93717,3404.7,3403.5,3.389]
[1721320110018,2.471,3404.9,3404.2,2.93752]
[1721320110019,2.937,3404.9,3404.2,2.93752]
[1721320110187,2.93689,3405.0,3404.1,2.93757]
[1721320110378,2.93689,3405.0,3404.3,0.05566496]
[1721320110580,2.93699,3404.9,3404.3,2.93745]
[1721320110804,5.93684,3405.1,3404.4,0.05560855]
[1721320111022,2.93688,3405.0,3404.4,0.05560855]
[1721320111310,2.93696,3404.9,3404.4,0.05560855]
[1721320112074,2.93662,3405.3,3404.6,2.93713]
[1721320112274,2.93662,3405.3,3404.5,2.93728]
[1721320112275,5.93673,3405.2,3404.5,2.93728]
[1721320112483,5.93673,3405.2,3404.4,2.99292855]
[1721320112484,2.93678,3405.1,3404.7,0.05539846]
[1721320112679,3.0,3405.2,3404.6,0.05545485]
[1721320112927,2.93673,3405.2,3404.8,0.05534207]
[1721320113225,2.93673,3405.2,3404.9,0.05528568]
[1721320113392,2.93685,3405.0,3404.9,0.05528568]
[1721320113592,2.93685,3405.0,3404.3,2.9374]
[1721320113815,2.93685,3405.0,3404.4,0.55]
[1721320114019,2.93685,3405.0,3404.4,0.60556766]
[1721320114522,3.824058,3405.2,3404.4,0.60556766]
[1721320114523,3.824048,3405.2,3404.4,0.60556766]
[1721320114692,0.6824048,3405.1,3404.4,0.60556766]
[1721320115083,2.93699,3404.9,3404.4,0.05556766]
[1721320115287,0.6824048,3405.1,3404.4,0.05556766]
[1721320115288,3.6192148,3405.1,3404.4,0.05556766]
[1721320115522,2.93686,3405.0,3404.3,2.9374]
[1721320115882,2.93686,3405.0,3404.4,0.05552122]
[1721320116295,2.93686,3405.0,3404.3,5.8748]
[1721320116502,2.93686,3405.0,3404.5,0.05544935]
[1721320116730,0.6824048,3405.1,3404.5,2.93728]
[1721320116899,2.93677,3405.1,3404.6,0.05539295]
[1721320117444,2.93677,3405.1,3404.4,2.93737]
[1721320117649,2.93675,3405.2,3404.7,0.05532661]
[1721320117853,2.93677,3405.1,3404.4,2.93737]
[1721320118152,2.93677,3405.1,3404.5,2.9927194]
[1721320118739,2.93663,3405.3,3404.6,2.93718]
[1721320118940,2.93674,3405.2,3404.7,0.0553244]
[1721320119152,2.93677,3405.1,3404.5,2.93726]
[1721320119353,2.93677,3405.1,3404.6,0.05537196]
[1721320120631,3.76195,3405.1,3404.6,0.05537196]
[1721320120949,2.93692,3405.0,3404.3,2.93739]
[1721320121181,2.93695,3404.9,3404.4,0.05548697]
[1721320121643,2.93728,3404.5,3403.7,2.93792]
[1721320121818,2.93704,3404.8,3404.5,0.05543057]
[1721320122019,2.93704,3404.8,3404.1,2.93758]
[1721320122430,5.87414,3404.8,3404.2,0.05559978]
[1721320122612,2.93704,3404.8,3404.2,0.05559978]
[1721320122912,2.9372,3404.6,3404.0,2.93771]
[1721320123138,2.9372,3404.6,3404.1,0.0556562]
[1721320123360,2.93743,3404.4,3404.1,0.0556562]
[1721320123954,2.93743,3404.4,3404.2,0.05559978]
[1721320124122,2.93746,3404.3,3403.6,5.38258]
[1721320124321,2.93746,3404.3,3403.7,0.55]
[1721320124510,2.93746,3404.3,3403.7,0.6059084]
[1721320125160,2.93723,3404.6,3404.0,2.93766]
[1721320125444,5.8745,3404.6,3404.1,0.05569377]
[1721320125649,2.9373,3404.5,3404.1,0.05569377]
[1721320125943,2.93737,3404.4,3404.2,0.05565836]
[1721320126260,2.93737,3404.4,3403.7,6.42583]
[1721320126261,2.93746,3404.3,3403.7,0.55]
[1721320126543,2.93746,3404.3,3403.3,5.38287]
[1721320126707,2.93763,3404.1,3403.8,0.05588182]
[1721320126907,2.93763,3404.1,3403.5,2.9381]
[1721320127250,2.93763,3404.1,3403.5,2.93808]
[1721320127419,2.93763,3404.1,3403.6,0.05599467]
[1721320127840,2.93763,3404.1,3403.5,2.93808]
[1721320128142,2.93763,3404.1,3403.7,0.05593824]
[1721320128346,2.93763,3404.1,3403.6,0.05599467]
[1721320128506,2.93763,3404.1,3403.7,0.05593824]
[1721320128842,2.93763,3404.1,3403.5,2.93808]
[1721320129031,2.93763,3404.1,3403.8,0.05588182]
[1721320129246,2.93763,3404.1,3403.5,2.93808]
[1721320129419,2.93763,3404.1,3403.9,0.05582539]
[1721320129611,2.93763,3404.1,3403.5,2.93808]
[1721320129936,2.93763,3404.1,3403.4,0.55]
[1721320130433,2.93763,3404.1,3403.5,0.05605111]
[1721320131225,2.9376,3404.2,3403.5,0.05605111]
[1721320131852,2.93768,3404.1,3403.5,0.05605111]
[1721320132536,2.93772,3404.0,3403.5,0.05605111]
[1721320132741,5.21736,3403.6,3403.5,0.05605111]
[1721320132913,5.739096,3403.6,3403.5,0.05605111]
[1721320133112,5.87679,3403.3,3402.5,5.43289]
[1721320133307,2.93844,3403.2,3402.5,5.43289]
[1721320133552,2.9385,3403.1,3402.6,0.05479064]
[1721320133751,2.93858,3403.0,3402.6,0.05479064]
[1721320133951,2.93884,3402.7,3402.6,0.05479064]
[1721320134158,2.93848,3403.2,3402.6,0.05479064]
[1721320134386,2.93837,3403.3,3402.5,2.539]
[1721320134676,2.93818,3403.5,3402.5,8.41696]
[1721320134955,2.93833,3403.3,3402.6,2.93886]
[1721320135168,2.93833,3403.3,3402.6,0.05479064]
[1721320135957,2.93864,3403.0,3402.6,0.05479064]
[1721320136139,2.93868,3402.9,3402.6,0.05479064]
[1721320136354,2.93875,3402.8,3402.1,5.98669439]
[1721320136558,5.87756,3402.8,3402.1,0.50837439]
[1721320136872,2.93875,3402.8,3402.2,0.05501652]
[1721320137877,2.4763,3402.9,3402.2,0.05501652]
[1721320138166,2.4763,3402.9,3402.3,2.93918]
[1721320138372,5.41497,3402.9,3402.4,0.05490358]
[1721320138727,2.93877,3402.8,3402.1,0.50837439]
[1721320138928,2.4763,3402.9,3402.2,2.99422652]
[1721320139131,5.41501,3402.9,3402.2,2.99422652]
[1721320139531,5.41501,3402.9,3402.3,2.93917]
[1721320139731,2.4763,3402.9,3402.4,2.99399358]
[1721320139971,3.101,3403.5,3402.4,2.99399358]
[1721320139972,5.27657,3403.4,3402.8,2.93875]
[1721320140346,2.93827,3403.4,3402.8,2.93875]
[1721320140977,5.93808,3403.6,3402.8,2.93875]
[1721320141191,3.0,3403.5,3402.8,2.93875]
[1721320141351,4.877638,3403.5,3402.9,0.05462126]
[1721320141540,2.93829,3403.4,3402.6,2.9389]
[1721320141872,7.815838,3403.5,3402.8,2.9387]
[1721320142077,5.27633,3403.7,3403.0,2.93852]
[1721320142233,5.27633,3403.7,3402.3,2.4897]
[1721320142234,2.93812,3403.6,3402.9,0.05470488]
[1721320142442,2.3383,3403.7,3403.1,0.05459198]
[1721320142768,7.5,3403.8,3403.4,2.93818]
[1721320142970,2.93763,3404.1,3403.3,2.93824]
[1721320143183,2.93739,3404.4,3403.7,2.93789]
[1721320143340,2.93747,3404.3,3403.7,2.93789]
[1721320143535,2.93747,3404.3,3403.8,0.05423764]
[1721320143756,2.93747,3404.3,3403.7,2.93789]
[1721320143960,4.215717,3404.3,3403.5,2.93807]
[1721320144160,4.215717,3404.3,3403.6,2.93806]
[1721320144365,9.845,3404.5,3403.7,2.99226407]
[1721320144541,18.50777,3405.1,3403.9,2.93778]
[1721320144542,2.93722,3404.6,3403.9,2.93778]
[1721320144758,2.345,3404.8,3404.2,2.93754]
[1721320144759,5.28203,3404.8,3404.2,2.93754]
[1721320144993,2.93657,3405.4,3404.3,2.93744]
[1721320144994,2.93686,3405.0,3404.3,2.93744]
[1721320145167,2.9368,3405.1,3404.3,0.05392256]
[1721320145478,2.3354,3405.2,3404.3,0.05392256]
[1721320145479,0.52722,3405.0,3404.3,0.05392256]
[1721320145663,2.93717,3404.7,3404.3,0.05392256]
[1721320145864,2.93717,3404.7,3404.0,5.87531]
[1721320146175,2.93717,3404.7,3404.0,2.93764]
[1721320146543,2.93717,3404.7,3404.1,0.05403538]
[1721320147589,2.93705,3404.8,3404.1,0.05403538]
[1721320147745,5.87416,3404.8,3404.1,2.99161538]
[1721320147935,2.93713,3404.7,3404.1,0.05403538]
[1721320148133,2.93713,3404.7,3404.0,2.93771]
[1721320148381,2.93713,3404.7,3403.8,2.93786]
[1721320148382,3.524476,3404.8,3404.1,2.93761]
[1721320148589,3.524476,3404.8,3404.1,2.99164538]
[1721320150257,2.3354,3405.2,3404.4,2.93732]
[1721320150258,2.93677,3405.1,3404.4,2.93732]
[1721320150786,5.27212,3405.2,3404.5,0.05380975]
[1721320150787,2.93686,3405.0,3404.5,0.05380975]
[1721320151154,2.93686,3405.0,3404.3,2.93745]
[1721320151368,2.93704,3404.8,3404.2,2.93753]
[1721320151810,2.93712,3404.7,3404.3,0.05392256]
[1721320151958,3.524536,3404.7,3404.3,0.05392256]
[1721320152288,0.587416,3404.7,3404.0,2.93766]
[1721320152598,2.93704,3404.8,3404.0,2.93766]
[1721320152770,2.3354,3405.2,3404.6,2.93715]
[1721320153088,5.27214,3405.2,3404.7,0.05369695]
[1721320153462,5.27214,3405.2,3404.4,2.93734]
[1721320154095,5.27214,3405.2,3404.5,0.05360513]
[1721320154096,2.93683,3405.1,3404.5,0.05360513]
[1721320154308,2.93683,3405.1,3404.5,2.99087513]
[1721320155094,5.27214,3405.2,3404.5,2.99087513]
[1721320155993,2.93669,3405.2,3404.5,0.05360513]
[1721320156195,2.93669,3405.2,3404.5,2.99087513]
[1721320156772,3.0,3405.1,3404.5,2.99087513]
[1721320157558,2.93669,3405.2,3404.5,2.99087513]
[1721320157914,2.93655,3405.4,3404.5,3.81656464]
[1721320157915,2.93661,3405.3,3404.5,3.81656464]
[1721320158206,2.93674,3405.2,3404.5,3.81656464]
[1721320158368,2.93674,3405.2,3404.6,2.9372]
[1721320158565,2.93674,3405.2,3404.7,0.05347474]
[1721320158962,2.93674,3405.2,3404.5,2.93727]
[1721320159261,2.93674,3405.2,3404.6,0.05353113]
[1721320160081,6.460827,3405.2,3404.6,0.05353113]
[1721320160357,3.524067,3405.2,3404.6,0.05353113]
[1721320160560,3.524067,3405.2,3404.3,2.93741]
[1721320160758,2.93688,3405.0,3404.4,0.05364394]
[1721320162473,5.20475,3405.6,3404.8,2.93699]
[1721320162682,5.93644,3405.5,3404.8,3.230689]
[1721320162975,5.93644,3405.5,3404.8,2.93699]
[1721320163175,5.93644,3405.5,3404.9,0.05336855]
[1721320163392,2.93651,3405.4,3404.9,0.05336855]
[1721320164216,2.93651,3405.4,3404.7,2.9371]
[1721320164499,2.93651,3405.4,3405.0,0.05331217]
[1721320164661,2.93651,3405.4,3404.7,2.9371]
[1721320164662,4.050645,3405.4,3404.7,2.9371]
[1721320164861,2.93651,3405.4,3405.1,0.05325578]
[1721320165116,2.93651,3405.4,3404.7,2.9371]
[1721320165290,2.93651,3405.4,3405.2,0.0531994]
[1721320165619,2.93651,3405.4,3404.7,2.9371]
[1721320165919,2.93651,3405.4,3405.3,0.05305178]
[1721320166216,2.93665,3405.3,3404.6,2.93715]
[1721320166496,2.93665,3405.3,3404.7,0.05339009]
[1721320167058,3.0,3405.5,3404.7,2.51719009]
[1721320167298,5.93614,3405.9,3405.0,2.9368]
[1721320167516,2.93627,3405.7,3405.0,2.9368]
[1721320167705,2.93627,3405.7,3405.1,0.05316344]
[1721320167859,3.0,3405.6,3405.1,0.05316344]
[1721320168070,5.93636,3405.6,3405.1,0.05316344]
[1721320168373,5.93636,3405.6,3404.9,2.93692]
[1721320168697,5.9364,3405.6,3404.7,2.4638]
[1721320168903,2.93656,3405.4,3405.0,0.05321982]
[1721320169075,2.93656,3405.4,3404.7,2.9371]
[1721320169399,2.93656,3405.4,3404.7,3.765958]
[1721320169764,5.93637,3405.6,3404.9,2.93693]
[1721320169964,5.93637,3405.6,3405.0,0.05321982]
[1721320170763,3.0,3405.6,3405.0,0.05321982]
[1721320170991,4.119331,3405.7,3405.0,0.05321982]
[1721320171169,2.93644,3405.5,3405.0,0.05321982]
[1721320172906,2.93644,3405.5,3404.8,5.8739]